{"text_format":"1","workbook":"xlsx","n_sheets":3,"sheets":["男子エントリー","女子エントリー","データテーブル"],"not_rendered":{"charts":0,"images":2,"macros":0,"external_links":0,"defined_names":2,"comments":0,"pivot_tables":0},"unopened":[],"bounds":{"document_bytes":16777216,"sheet_cells":100000,"rows_first":2000,"rows_last":500,"rows_between":2000,"halvings":0,"cell_chars":16384,"cell_head_chars":4096},"cells_cut":0,"cells_raw":0,"read":"whole","date_system":"1900"}

{"sheet":"男子エントリー","index":0,"n_rows":56,"n_cols":32,"rows_kept":56,"cut":false,"hidden":false,"merged":[[49,0,49,30],[51,0,51,30],[53,1,53,2],[55,8,55,18],[55,19,55,20],[55,21,55,29],[45,2,45,7],[45,8,45,13],[46,2,46,7],[46,8,46,13],[47,0,47,1],[47,2,47,7],[47,8,47,13],[39,0,46,0],[41,8,41,13],[42,2,42,7],[42,8,42,13],[43,2,43,7],[43,8,43,13],[44,2,44,7],[44,8,44,13],[39,2,39,7],[39,8,39,13],[40,2,40,7],[40,8,40,13],[41,2,41,7],[33,8,33,13],[34,2,34,7],[34,8,34,13],[35,2,35,7],[35,8,35,13],[36,2,36,7],[36,8,36,13],[29,0,38,0],[29,2,29,7],[29,8,29,13],[30,2,30,7],[30,8,30,13],[31,2,31,7],[31,8,31,13],[32,2,32,7],[32,8,32,13],[33,2,33,7],[37,2,37,7],[37,8,37,13],[38,2,38,7],[38,8,38,13],[19,0,28,0],[19,2,19,7],[19,8,19,13],[20,2,20,7],[20,8,20,13],[21,2,21,7],[21,8,21,13],[22,2,22,7],[26,2,26,7],[26,8,26,13],[27,2,27,7],[27,8,27,13],[28,2,28,7],[28,8,28,13],[22,8,22,13],[23,2,23,7],[23,8,23,13],[24,2,24,7],[24,8,24,13],[25,2,25,7],[25,8,25,13],[13,8,13,13],[14,0,18,1],[14,2,14,7],[14,8,14,13],[15,2,15,7],[15,8,15,13],[16,2,16,7],[16,8,16,13],[17,2,17,7],[17,8,17,13],[9,0,13,1],[9,2,9,7],[9,8,9,13],[10,2,10,7],[10,8,10,13],[11,2,11,7],[11,8,11,13],[12,2,12,7],[12,8,12,13],[13,2,13,7],[18,2,18,7],[18,8,18,13],[6,22,6,30],[8,0,8,1],[8,2,8,7],[8,8,8,13],[8,17,8,23],[8,24,8,30],[4,20,4,21],[4,22,4,30],[5,0,5,1],[5,3,5,16],[5,17,6,19],[5,20,5,21],[5,22,5,30],[6,0,6,1],[6,3,6,16],[6,20,6,21],[0,0,0,25],[0,26,2,30],[2,0,2,1],[2,3,2,16],[3,0,4,1],[3,3,3,16],[3,17,4,19],[3,20,3,21],[3,22,3,30],[4,3,4,16]]}
["３０　少林寺拳法競技　参加申込書　（新人）",null,null,null,null,null,null,null,null,null,null,null,null,null,null,null,null,null,null,null,null,null,null,null,null,null,"男子"]
[]
["学校名"]
["学校所在地",null,"〒",null,null,null,null,null,null,null,null,null,null,null,null,null,null,"監　督",null,null,"氏名"]
[null,null,null,null,null,null,null,null,null,null,null,null,null,null,null,null,null,null,null,null,"ＴＥＬ"]
["ＴＥＬ",null,null,null,null,null,null,null,null,null,null,null,null,null,null,null,null,"引率教員",null,null,"氏名"]
["ＦＡＸ",null,null,null,null,null,null,null,null,null,null,null,null,null,null,null,null,null,null,null,"ＴＥＬ"]
[]
["出場種目",null,"選手名",null,null,null,null,null,"ふりがな",null,null,null,null,null,"性別","学年","資格","生年月日",null,null,null,null,null,null,"入学（転入）年月日"]
["規定単独演武",null,null,null,null,null,null,null,{"$f":"PHONETIC(C10)","v":""},null,null,null,null,null,null,null,null,"平成",null,"年",null,"月",null,"日","令和",null,"年",null,"月",null,"日"]
[null,null,null,null,null,null,null,null,{"$f":"PHONETIC(C11)","v":""},null,null,null,null,null,null,null,null,"平成",null,"年",null,"月",null,"日","令和",null,"年",null,"月",null,"日"]
[null,null,null,null,null,null,null,null,"",null,null,null,null,null,null,null,null,"平成",null,"年",null,"月",null,"日","令和",null,"年",null,"月",null,"日"]
[null,null,null,null,null,null,null,null,"",null,null,null,null,null,null,null,null,"平成",null,"年",null,"月",null,"日","令和",null,"年",null,"月",null,"日"]
[null,null,null,null,null,null,null,null,"",null,null,null,null,null,null,null,null,"平成",null,"年",null,"月",null,"日","令和",null,"年",null,"月",null,"日"]
["自由単独演武",null,null,null,null,null,null,null,"",null,null,null,null,null,null,null,null,"平成",null,"年",null,"月",null,"日","令和",null,"年",null,"月",null,"日"]
[null,null,null,null,null,null,null,null,"",null,null,null,null,null,null,null,null,"平成",null,"年",null,"月",null,"日","令和",null,"年",null,"月",null,"日"]
[null,null,null,null,null,null,null,null,"",null,null,null,null,null,null,null,null,"平成",null,"年",null,"月",null,"日","令和",null,"年",null,"月",null,"日"]
[null,null,null,null,null,null,null,null,"",null,null,null,null,null,null,null,null,"平成",null,"年",null,"月",null,"日","令和",null,"年",null,"月",null,"日"]
[null,null,null,null,null,null,null,null,"",null,null,null,null,null,null,null,null,"平成",null,"年",null,"月",null,"日","令和",null,"年",null,"月",null,"日"]
["規定組演武",1,null,null,null,null,null,null,"",null,null,null,null,null,null,null,null,"平成",null,"年",null,"月",null,"日","令和",null,"年",null,"月",null,"日"]
[null,2,null,null,null,null,null,null,"",null,null,null,null,null,null,null,null,"平成",null,"年",null,"月",null,"日","令和",null,"年",null,"月",null,"日"]
[null,1,null,null,null,null,null,null,"",null,null,null,null,null,null,null,null,"平成",null,"年",null,"月",null,"日","令和",null,"年",null,"月",null,"日"]
[null,2,null,null,null,null,null,null,"",null,null,null,null,null,null,null,null,"平成",null,"年",null,"月",null,"日","令和",null,"年",null,"月",null,"日"]
[null,1,null,null,null,null,null,null,"",null,null,null,null,null,null,null,null,"平成",null,"年",null,"月",null,"日","令和",null,"年",null,"月",null,"日"]
[null,2,null,null,null,null,null,null,"",null,null,null,null,null,null,null,null,"平成",null,"年",null,"月",null,"日","令和",null,"年",null,"月",null,"日"]
[null,1,null,null,null,null,null,null,"",null,null,null,null,null,null,null,null,"平成",null,"年",null,"月",null,"日","令和",null,"年",null,"月",null,"日"]
[null,2,null,null,null,null,null,null,"",null,null,null,null,null,null,null,null,"平成",null,"年",null,"月",null,"日","令和",null,"年",null,"月",null,"日"]
[null,1,null,null,null,null,null,null,"",null,null,null,null,null,null,null,null,"平成",null,"年",null,"月",null,"日","令和",null,"年",null,"月",null,"日"]
[null,2,null,null,null,null,null,null,"",null,null,null,null,null,null,null,null,"平成",null,"年",null,"月",null,"日","令和",null,"年",null,"月",null,"日"]
["自由組演武",1,null,null,null,null,null,null,"",null,null,null,null,null,null,null,null,"平成",null,"年",null,"月",null,"日","令和",null,"年",null,"月",null,"日"]
[null,2,null,null,null,null,null,null,"",null,null,null,null,null,null,null,null,"平成",null,"年",null,"月",null,"日","令和",null,"年",null,"月",null,"日"]
[null,1,null,null,null,null,null,null,"",null,null,null,null,null,null,null,null,"平成",null,"年",null,"月",null,"日","令和",null,"年",null,"月",null,"日"]
[null,2,null,null,null,null,null,null,"",null,null,null,null,null,null,null,null,"平成",null,"年",null,"月",null,"日","令和",null,"年",null,"月",null,"日"]
[null,1,null,null,null,null,null,null,"",null,null,null,null,null,null,null,null,"平成",null,"年",null,"月",null,"日","令和",null,"年",null,"月",null,"日"]
[null,2,null,null,null,null,null,null,"",null,null,null,null,null,null,null,null,"平成",null,"年",null,"月",null,"日","令和",null,"年",null,"月",null,"日"]
[null,1,null,null,null,null,null,null,"",null,null,null,null,null,null,null,null,"平成",null,"年",null,"月",null,"日","令和",null,"年",null,"月",null,"日"]
[null,2,null,null,null,null,null,null,"",null,null,null,null,null,null,null,null,"平成",null,"年",null,"月",null,"日","令和",null,"年",null,"月",null,"日"]
[null,1,null,null,null,null,null,null,"",null,null,null,null,null,null,null,null,"平成",null,"年",null,"月",null,"日","令和",null,"年",null,"月",null,"日"]
[null,2,null,null,null,null,null,null,"",null,null,null,null,null,null,null,null,"平成",null,"年",null,"月",null,"日","令和",null,"年",null,"月",null,"日","重複"]
["団体演武",1,null,null,null,null,null,null,"",null,null,null,null,null,null,null,null,"平成",null,"年",null,"月",null,"日","令和",null,"年",null,"月",null,"日"]
[null,2,null,null,null,null,null,null,"",null,null,null,null,null,null,null,null,"平成",null,"年",null,"月",null,"日","令和",null,"年",null,"月",null,"日"]
[null,3,null,null,null,null,null,null,"",null,null,null,null,null,null,null,null,"平成",null,"年",null,"月",null,"日","令和",null,"年",null,"月",null,"日"]
[null,4,null,null,null,null,null,null,"",null,null,null,null,null,null,null,null,"平成",null,"年",null,"月",null,"日","令和",null,"年",null,"月",null,"日"]
[null,5,null,null,null,null,null,null,"",null,null,null,null,null,null,null,null,"平成",null,"年",null,"月",null,"日","令和",null,"年",null,"月",null,"日"]
[null,6,null,null,null,null,null,null,"",null,null,null,null,null,null,null,null,"平成",null,"年",null,"月",null,"日","令和",null,"年",null,"月",null,"日"]
[null,7,null,null,null,null,null,null,"",null,null,null,null,null,null,null,null,"平成",null,"年",null,"月",null,"日","令和",null,"年",null,"月",null,"日"]
[null,8,null,null,null,null,null,null,"",null,null,null,null,null,null,null,null,"平成",null,"年",null,"月",null,"日","令和",null,"年",null,"月",null,"日"]
["ﾏﾈｰｼﾞｬｰ",null,null,null,null,null,null,null,"",null,null,null,null,null,null,null,null,"平成",null,"年",null,"月",null,"日","令和",null,"年",null,"月",null,"日"]
[]
["上記の者は本校在学生で、本大会に出場することを認め、参加申し込み致します。"]
[]
["高体連個人情報に関する取り扱いについては、本大会要項の記載事項を承諾の上で、参加申し込みすることを同意します。"]
[]
[null,"令和",null,6,"年",{"$f":"MONTH(TODAY())","v":3},"月",{"$f":"DAY(TODAY())","v":13},"日"]
[]
[null,null,null,null,null,null,null,null,{"$f":"IF($D$3=\"\",\"\",$D$3)","v":""},null,null,null,null,null,null,null,null,null,null,"校長",null,null,null,null,null,null,null,null,null,null,"印"]

{"sheet":"女子エントリー","index":1,"n_rows":56,"n_cols":32,"rows_kept":56,"cut":false,"hidden":false,"merged":[[0,0,0,25],[0,26,2,30],[2,0,2,1],[2,3,2,16],[3,0,4,1],[3,3,3,16],[3,17,4,19],[3,20,3,21],[3,22,3,30],[4,3,4,16],[4,20,4,21],[4,22,4,30],[5,0,5,1],[5,3,5,16],[5,17,6,19],[5,20,5,21],[5,22,5,30],[6,0,6,1],[6,3,6,16],[6,20,6,21],[12,8,12,13],[13,2,13,7],[18,2,18,7],[18,8,18,13],[6,22,6,30],[8,0,8,1],[8,2,8,7],[8,8,8,13],[8,17,8,23],[8,24,8,30],[21,2,21,7],[21,8,21,13],[22,2,22,7],[22,8,22,13],[28,2,28,7],[28,8,28,13],[13,8,13,13],[14,0,18,1],[14,2,14,7],[14,8,14,13],[15,2,15,7],[15,8,15,13],[16,2,16,7],[16,8,16,13],[17,2,17,7],[17,8,17,13],[9,0,13,1],[9,2,9,7],[9,8,9,13],[10,2,10,7],[10,8,10,13],[11,2,11,7],[11,8,11,13],[12,2,12,7],[29,0,38,0],[29,2,29,7],[29,8,29,13],[24,2,24,7],[24,8,24,13],[25,2,25,7],[25,8,25,13],[26,2,26,7],[26,8,26,13],[30,2,30,7],[30,8,30,13],[31,2,31,7],[31,8,31,13],[32,2,32,7],[32,8,32,13],[27,8,27,13],[19,0,28,0],[19,2,19,7],[19,8,19,13],[23,2,23,7],[23,8,23,13],[27,2,27,7],[20,2,20,7],[20,8,20,13],[37,2,37,7],[37,8,37,13],[38,2,38,7],[38,8,38,13],[35,2,35,7],[35,8,35,13],[36,2,36,7],[36,8,36,13],[33,2,33,7],[33,8,33,13],[34,2,34,7],[34,8,34,13],[43,8,43,13],[44,2,44,7],[44,8,44,13],[45,2,45,7],[45,8,45,13],[46,2,46,7],[46,8,46,13],[39,0,46,0],[39,2,39,7],[39,8,39,13],[40,2,40,7],[40,8,40,13],[41,2,41,7],[41,8,41,13],[42,2,42,7],[42,8,42,13],[43,2,43,7],[55,8,55,18],[55,19,55,20],[55,21,55,29],[47,0,47,1],[47,2,47,7],[47,8,47,13],[49,0,49,30],[51,0,51,30],[53,1,53,2]]}
["３０　少林寺拳法競技　参加申込書　（新人）",null,null,null,null,null,null,null,null,null,null,null,null,null,null,null,null,null,null,null,null,null,null,null,null,null,"女子"]
[]
["学校名"]
["学校所在地",null,"〒",null,null,null,null,null,null,null,null,null,null,null,null,null,null,"監　督",null,null,"氏名"]
[null,null,null,null,null,null,null,null,null,null,null,null,null,null,null,null,null,null,null,null,"ＴＥＬ"]
["ＴＥＬ",null,null,null,null,null,null,null,null,null,null,null,null,null,null,null,null,"引率教員",null,null,"氏名"]
["ＦＡＸ",null,null,null,null,null,null,null,null,null,null,null,null,null,null,null,null,null,null,null,"ＴＥＬ"]
[]
["出場種目",null,"選手名",null,null,null,null,null,"ふりがな",null,null,null,null,null,"性別","学年","資格","生年月日",null,null,null,null,null,null,"入学（転入）年月日"]
["規定単独演武",null,null,null,null,null,null,null,{"$f":"PHONETIC(C10)","v":""},null,null,null,null,null,null,null,null,"平成",null,"年",null,"月",null,"日","令和",null,"年",null,"月",null,"日"]
[null,null,null,null,null,null,null,null,"",null,null,null,null,null,null,null,null,"平成",null,"年",null,"月",null,"日","令和",null,"年",null,"月",null,"日"]
[null,null,null,null,null,null,null,null,"",null,null,null,null,null,null,null,null,"平成",null,"年",null,"月",null,"日","令和",null,"年",null,"月",null,"日"]
[null,null,null,null,null,null,null,null,"",null,null,null,null,null,null,null,null,"平成",null,"年",null,"月",null,"日","令和",null,"年",null,"月",null,"日"]
[null,null,null,null,null,null,null,null,"",null,null,null,null,null,null,null,null,"平成",null,"年",null,"月",null,"日","令和",null,"年",null,"月",null,"日"]
["自由単独演武",null,null,null,null,null,null,null,"",null,null,null,null,null,null,null,null,"平成",null,"年",null,"月",null,"日","令和",null,"年",null,"月",null,"日"]
[null,null,null,null,null,null,null,null,"",null,null,null,null,null,null,null,null,"平成",null,"年",null,"月",null,"日","令和",null,"年",null,"月",null,"日"]
[null,null,null,null,null,null,null,null,"",null,null,null,null,null,null,null,null,"平成",null,"年",null,"月",null,"日","令和",null,"年",null,"月",null,"日"]
[null,null,null,null,null,null,null,null,"",null,null,null,null,null,null,null,null,"平成",null,"年",null,"月",null,"日","令和",null,"年",null,"月",null,"日"]
[null,null,null,null,null,null,null,null,"",null,null,null,null,null,null,null,null,"平成",null,"年",null,"月",null,"日","令和",null,"年",null,"月",null,"日"]
["規定組演武",1,null,null,null,null,null,null,"",null,null,null,null,null,null,null,null,"平成",null,"年",null,"月",null,"日","令和",null,"年",null,"月",null,"日"]
[null,2,null,null,null,null,null,null,"",null,null,null,null,null,null,null,null,"平成",null,"年",null,"月",null,"日","令和",null,"年",null,"月",null,"日"]
[null,1,null,null,null,null,null,null,"",null,null,null,null,null,null,null,null,"平成",null,"年",null,"月",null,"日","令和",null,"年",null,"月",null,"日"]
[null,2,null,null,null,null,null,null,"",null,null,null,null,null,null,null,null,"平成",null,"年",null,"月",null,"日","令和",null,"年",null,"月",null,"日"]
[null,1,null,null,null,null,null,null,"",null,null,null,null,null,null,null,null,"平成",null,"年",null,"月",null,"日","令和",null,"年",null,"月",null,"日"]
[null,2,null,null,null,null,null,null,"",null,null,null,null,null,null,null,null,"平成",null,"年",null,"月",null,"日","令和",null,"年",null,"月",null,"日"]
[null,1,null,null,null,null,null,null,"",null,null,null,null,null,null,null,null,"平成",null,"年",null,"月",null,"日","令和",null,"年",null,"月",null,"日"]
[null,2,null,null,null,null,null,null,"",null,null,null,null,null,null,null,null,"平成",null,"年",null,"月",null,"日","令和",null,"年",null,"月",null,"日"]
[null,1,null,null,null,null,null,null,"",null,null,null,null,null,null,null,null,"平成",null,"年",null,"月",null,"日","令和",null,"年",null,"月",null,"日"]
[null,2,null,null,null,null,null,null,"",null,null,null,null,null,null,null,null,"平成",null,"年",null,"月",null,"日","令和",null,"年",null,"月",null,"日"]
["自由組演武",1,null,null,null,null,null,null,"",null,null,null,null,null,null,null,null,"平成",null,"年",null,"月",null,"日","令和",null,"年",null,"月",null,"日"]
[null,2,null,null,null,null,null,null,"",null,null,null,null,null,null,null,null,"平成",null,"年",null,"月",null,"日","令和",null,"年",null,"月",null,"日"]
[null,1,null,null,null,null,null,null,"",null,null,null,null,null,null,null,null,"平成",null,"年",null,"月",null,"日","令和",null,"年",null,"月",null,"日"]
[null,2,null,null,null,null,null,null,"",null,null,null,null,null,null,null,null,"平成",null,"年",null,"月",null,"日","令和",null,"年",null,"月",null,"日"]
[null,1,null,null,null,null,null,null,"",null,null,null,null,null,null,null,null,"平成",null,"年",null,"月",null,"日","令和",null,"年",null,"月",null,"日"]
[null,2,null,null,null,null,null,null,"",null,null,null,null,null,null,null,null,"平成",null,"年",null,"月",null,"日","令和",null,"年",null,"月",null,"日"]
[null,1,null,null,null,null,null,null,"",null,null,null,null,null,null,null,null,"平成",null,"年",null,"月",null,"日","令和",null,"年",null,"月",null,"日"]
[null,2,null,null,null,null,null,null,"",null,null,null,null,null,null,null,null,"平成",null,"年",null,"月",null,"日","令和",null,"年",null,"月",null,"日"]
[null,1,null,null,null,null,null,null,"",null,null,null,null,null,null,null,null,"平成",null,"年",null,"月",null,"日","令和",null,"年",null,"月",null,"日"]
[null,2,null,null,null,null,null,null,"",null,null,null,null,null,null,null,null,"平成",null,"年",null,"月",null,"日","令和",null,"年",null,"月",null,"日","重複"]
["団体演武",1,null,null,null,null,null,null,"",null,null,null,null,null,null,null,null,"平成",null,"年",null,"月",null,"日","令和",null,"年",null,"月",null,"日"]
[null,2,null,null,null,null,null,null,"",null,null,null,null,null,null,null,null,"平成",null,"年",null,"月",null,"日","令和",null,"年",null,"月",null,"日"]
[null,3,null,null,null,null,null,null,"",null,null,null,null,null,null,null,null,"平成",null,"年",null,"月",null,"日","令和",null,"年",null,"月",null,"日"]
[null,4,null,null,null,null,null,null,"",null,null,null,null,null,null,null,null,"平成",null,"年",null,"月",null,"日","令和",null,"年",null,"月",null,"日"]
[null,5,null,null,null,null,null,null,"",null,null,null,null,null,null,null,null,"平成",null,"年",null,"月",null,"日","令和",null,"年",null,"月",null,"日"]
[null,6,null,null,null,null,null,null,"",null,null,null,null,null,null,null,null,"平成",null,"年",null,"月",null,"日","令和",null,"年",null,"月",null,"日"]
[null,7,null,null,null,null,null,null,"",null,null,null,null,null,null,null,null,"平成",null,"年",null,"月",null,"日","令和",null,"年",null,"月",null,"日"]
[null,8,null,null,null,null,null,null,"",null,null,null,null,null,null,null,null,"平成",null,"年",null,"月",null,"日","令和",null,"年",null,"月",null,"日"]
["ﾏﾈｰｼﾞｬｰ",null,null,null,null,null,null,null,"",null,null,null,null,null,null,null,null,"平成",null,"年",null,"月",null,"日","令和",null,"年",null,"月",null,"日"]
[]
["上記の者は本校在学生で、本大会に出場することを認め、参加申し込み致します。"]
[]
["高体連個人情報に関する取り扱いについては、本大会要項の記載事項を承諾の上で、参加申し込みすることを同意します。"]
[]
[null,"令和",null,6,"年",{"$f":"MONTH(TODAY())","v":3},"月",{"$f":"DAY(TODAY())","v":13},"日"]
[]
[null,null,null,null,null,null,null,null,{"$f":"IF($D$3=\"\",\"\",$D$3)","v":""},null,null,null,null,null,null,null,null,null,null,"校長",null,null,null,null,null,null,null,null,null,null,"印"]

{"sheet":"データテーブル","index":2,"n_rows":11,"n_cols":4,"rows_kept":11,"cut":false,"hidden":false,"merged":[]}
["性別","学年","資格","重複"]
["男",1,"三段","○"]
["女",2,"二段"]
[null,3,"初段"]
[null,null,"１級"]
[null,null,"２級"]
[null,null,"３級"]
[null,null,"４級"]
[null,null,"５級"]
[null,null,"６級"]
[null,null,"見習い"]